Workbook

Sheet Список
A1: N | B1: Название | C1: Кто | D1: Комната | E1: Link | F1: Status | G1: Дата | H1: Начало | I1: Продолжительность | J1: Конец
A2: 1 | B2: Летучка во вторник | C2: Main orgs team | D2: КонОпс. Главный корпус | F2: Org | G2: 2016-02-02 | H2: 09:00:00 | I2: 1 | J2: =H2+TIME(FLOOR(I2,1),(I2-FLOOR(I2,1))*60,0) -> 10:00:00
B3: Завтрак | D3: Ресторан | F3: Еда | G3: 2016-02-02 | H3: 09:00:00 | I3: 2 | J3: 11:00:00
A4: 2 | B4: Репетиция открытия | C4: Event team | D4: Главный зал. Главный корпус, 1 этаж | F4: Org | G4: 2016-02-02 | H4: 10:30:00 | I4: 3.5 | J4: 14:00:00
A5: 3 | B5: Монтаж стендов | C5: Artshow team | D5: Арт-салон, Главный корпус, 2 этаж | F5: Org | G5: 2016-02-02 | H5: 11:00:00 | I5: 3 | J5: 14:00:00
B6: Обед | D6: Ресторан | F6: Еда | G6: 2016-02-02 | H6: 13:00:00 | I6: 2.5 | J6: 15:30:00
A7: 5 | B7: Запись света на открытие | C7: Stage team | D7: Главный зал. Главный корпус, 1 этаж | F7: Org | G7: 2016-02-02 | H7: 15:00:00 | I7: 3 | J7: 18:00:00
A8: 4 | B8: Репетиция открытия 2 | C8: Event team | D8: Главный зал. Главный корпус, 1 этаж | F8: Org | G8: 2016-02-02 | H8: 15:00:00 | I8: 4 | J8: 19:00:00
A9: 6 | B9: Приём работ | C9: Организаторы | D9: Арт-салон, Главный корпус, 2 этаж | F9: Event | G9: 2016-02-02 | H9: 17:00:00 | I9: 2 | J9: 19:00:00
B10: Ужин | D10: Ресторан | F10: Еда | G10: 2016-02-02 | H10: 19:00:00 | I10: 3 | J10: 22:00:00
A11: 7 | B11: Staff sauna night | C11: Организаторы | D11: Лобби. Главный корпус, 1 этаж, вход | F11: Org | G11: 2016-02-02 | H11: 22:00:00 | I11: 3 | J11: 1.041666667
A12: 8 | B12: Летучка в среду | C12: Main orgs team | D12: КонОпс. Главный корпус | F12: Org | G12: 2016-02-03 | H12: 09:00:00 | I12: 1 | J12: 10:00:00
B13: Завтрак | D13: Ресторан | F13: Еда | G13: 2016-02-03 | H13: 09:00:00 | I13: 2 | J13: 11:00:00
A14: 9 | B14: Приём работ | C14: Организаторы | D14: Арт-салон, Главный корпус, 2 этаж | F14: Event | G14: 2016-02-03 | H14: 11:30:00 | I14: 7.5 | J14: 19:00:00
B15: Обед | D15: Ресторан | F15: Еда | G15: 2016-02-03 | H15: 13:00:00 | I15: 2.5 | J15: 15:30:00
B16: Ужин | D16: Ресторан | F16: Еда | G16: 2016-02-03 | H16: 19:00:00 | I16: 3 | J16: 22:00:00
A17: 10 | B17: Открытие | C17: Организаторы | D17: Главный зал. Главный корпус, 1 этаж | F17: Event | G17: 2016-02-03 | H17: 21:00:00 | I17: 2 | J17: 23:00:00
A18: 11 | B18: Моя первая фурька | C18: Организаторы | D18: Главный зал. Главный корпус, 1 этаж | F18: Event | G18: 2016-02-03 | H18: 23:00:00 | I18: 2 | J18: 1.041666667
A19: 12 | B19: Летучка в четверг | C19: Main orgs team | D19: КонОпс. Главный корпус | F19: Org | G19: 2016-02-04 | H19: 09:00:00 | I19: 1 | J19: 10:00:00
B20: Завтрак | D20: Ресторан | F20: Еда | G20: 2016-02-04 | H20: 09:00:00 | I20: 2 | J20: 11:00:00
A21: 13 | B21: Запись света на дэнс контест | C21: Stage team | D21: Главный зал. Главный корпус, 1 этаж | F21: Org | G21: 2016-02-04 | H21: 10:30:00 | I21: 4 | J21: 14:30:00
A22: 14 | B22: Введение в Китайский язык | C22: Aspeel | D22: Комната для мероприятий. Главный корпус, 4 этаж | F22: Event | G22: 2016-02-04 | H22: 11:30:00 | I22: 1 | J22: 12:30:00
A23: 15 | B23: Работа Арт-салона | C23: Организаторы | D23: Арт-салон, Главный корпус, 2 этаж | F23: Event | G23: 2016-02-04 | H23: 11:30:00 | I23: 7.5 | J23: 19:00:00
B24: Обед | D24: Ресторан | F24: Еда | G24: 2016-02-04 | H24: 13:00:00 | I24: 2.5 | J24: 15:30:00
A25: 16 | B25: Запись света на закрытие | C25: Stage team | D25: Главный зал. Главный корпус, 1 этаж | F25: Org | G25: 2016-02-04 | H25: 15:00:00 | I25: 4 | J25: 19:00:00
A26: 17 | B26: Рассказ о Животных Cилы | C26: Hi-jera_WingFox | D26: Комната для мероприятий. Главный корпус, 4 этаж | F26: Event | G26: 2016-02-04 | H26: 15:30:00 | I26: 3 | J26: 18:30:00
B27: Ужин | D27: Ресторан | F27: Еда | G27: 2016-02-04 | H27: 19:00:00 | I27: 3 | J27: 22:00:00
A28: 18 | B28: Рисунок акварелью и маркером | C28: ShinigamiGirl | D28: Комната для мероприятий. Главный корпус, 4 этаж | F28: Event | G28: 2016-02-04 | H28: 21:00:00 | I28: 1 | J28: 22:00:00
A29: 19 | B29: FurryVape | C29: Mister_X | D29: Комната для мероприятий. Главный корпус, 4 этаж | F29: Event | G29: 2016-02-04 | H29: 22:00:00 | I29: 1 | J29: 23:00:00
A30: 20 | B30: Подведение итогов за день (коорд. штаб) | C30: Организаторы | D30: КонОпс. Главный корпус | F30: Org | G30: 2016-02-04 | H30: 22:00:00 | J30: 22:00:00
A31: 21 | B31: Дискотека | C31: Организаторы | D31: Главный зал. Главный корпус, 1 этаж | F31: Event | G31: 2016-02-04 | H31: 22:30:00 | I31: 2 | J31: 1.020833333
A32: 22 | B32: Летучка в пятницу | C32: Main orgs team | D32: КонОпс. Главный корпус | F32: Org | G32: 2016-02-05 | H32: 09:00:00 | I32: 1 | J32: 10:00:00
B33: Завтрак | D33: Ресторан | F33: Еда | G33: 2016-02-05 | H33: 09:00:00 | I33: 2 | J33: 11:00:00
A34: 23 | B34: Кружок миниатюристов: берестяные узоры | C34: Саурон | D34: Комната для мероприятий. Главный корпус, 4 этаж | F34: Event | G34: 2016-02-05 | H34: 11:30:00 | I34: 2.5 | J34: =H34+TIME(FLOOR(I34,1),(I34-FLOOR(I34,1))*60,0) -> 14:00:00
A35: 25 | B35: Плюшевые игры | C35: Gabriel | D35: Улица | F35: Event | G35: 2016-02-05 | H35: 11:30:00 | I35: 2 | J35: 13:30:00
A36: 24 | B36: Работа Арт-салона | C36: Организаторы | D36: Арт-салон, Главный корпус, 2 этаж | F36: Event | G36: 2016-02-05 | H36: 11:30:00 | I36: 7.5 | J36: 19:00:00
B37: Обед | D37: Ресторан | F37: Еда | G37: 2016-02-05 | H37: 13:00:00 | I37: 2.5 | J37: 15:30:00
A38: 26 | B38: Запись света на закрытие | C38: Stage team | D38: Главный зал. Главный корпус, 1 этаж | F38: Org | G38: 2016-02-05 | H38: 15:00:00 | I38: 3 | J38: 18:00:00
A39: 27 | B39: Художник-головорез | C39: ShinigamiGirl | D39: Комната для мероприятий. Главный корпус, 4 этаж | F39: Event | G39: 2016-02-05 | H39: 15:00:00 | I39: 1.5 | J39: 16:30:00
A40: 28 | B40: Репетиция закрытия | C40: Event team | D40: Главный зал. Главный корпус, 1 этаж | F40: Org | G40: 2016-02-05 | H40: 15:30:00 | I40: 3.5 | J40: 19:00:00
A41: 29 | B41: Мурсьютостроение | C41: Nubi | D41: Комната для мероприятий. Главный корпус, 4 этаж | F41: Event | G41: 2016-02-05 | H41: 16:30:00 | I41: 1.5 | J41: 18:00:00
A42: 30 | B42: Городские легенды | C42: Организаторы | D42: Главный зал. Главный корпус, 1 этаж | F42: Event | G42: 2016-02-05 | H42: 17:30:00 | I42: 1 | J42: 18:30:00
B43: Ужин | D43: Ресторан | F43: Еда | G43: 2016-02-05 | H43: 19:00:00 | I43: 3 | J43: 22:00:00
A44: 31 | B44: Прогон/репетиция фурдэнс компетишн | C44: Stage team | D44: Главный зал. Главный корпус, 1 этаж | F44: Org | G44: 2016-02-05 | H44: 20:00:00 | I44: 4 | J44: 1
A45: 32 | B45: Мастер-класс по лепке из полимерной глины | C45: Angel tigress | D45: Комната для мероприятий. Главный корпус, 4 этаж | F45: Event | G45: 2016-02-05 | H45: 21:00:00 | I45: 2.5 | J45: 23:30:00
A46: 33 | B46: Интеллектуальная игра QUIZ | C46: Организаторы | D46: Бар, Главный корпус, 1 этаж | F46: Event | G46: 2016-02-05 | H46: 21:30:00 | I46: 2 | J46: 23:30:00
A47: 34 | B47: Конкурс немого кино | C47: Организаторы | D47: Главный зал. Главный корпус, 1 этаж | F47: Event | G47: 2016-02-05 | H47: 22:00:00 | I47: 1.5 | J47: 23:30:00
A48: 35 | B48: Подведение итогов за день (коорд. штаб) | C48: Организаторы | D48: КонОпс. Главный корпус | F48: Org | G48: 2016-02-05 | H48: 22:00:00 | J48: 22:00:00
A49: 36 | B49: Салют | C49: Организаторы | D49: Улица | F49: Event | G49: 2016-02-05 | H49: 23:00:00 | I49: 0.5 | J49: 23:30:00
A50: 37 | B50: АРФИ и FurryStuff — анонсы, творчество и поэтический вечер | C50: StormWind | D50: Комната для мероприятий. Главный корпус, 4 этаж | F50: Event | G50: 2016-02-05 | H50: 23:30:00 | I50: 2 | J50: 1.0625
A51: 38 | B51: Шашлыки в −30 | C51: Tigrenok | D51: Улица | F51: Event | G51: 2016-02-05 | H51: 23:30:00 | I51: 4 | J51: 1.145833333
A52: 39 | B52: Летучка в субботу | C52: Main orgs team | D52: КонОпс. Главный корпус | F52: Org | G52: 2016-02-06 | H52: 09:00:00 | I52: 1 | J52: 10:00:00
B53: Завтрак | D53: Ресторан | F53: Еда | G53: 2016-02-06 | H53: 09:00:00 | I53: 2 | J53: 11:00:00
A54: 40 | B54: Репетиция закрытия 2 | C54: Event team | D54: Главный зал. Главный корпус, 1 этаж | F54: Org | G54: 2016-02-06 | H54: 10:30:00 | I54: 3.5 | J54: 14:00:00
A55: 43 | B55: Art Battle | C55: ☭( ͡° ͜ʖ ͡°)☭ | D55: Комната для мероприятий. Главный корпус, 4 этаж | F55: Event | G55: 2016-02-06 | H55: 11:00:00 | I55: 1.5 | J55: 12:30:00
A56: 42 | B56: Клуб настольных игр «Furry Games» | C56: Dreamer | D56: Бар, Главный корпус, 1 этаж | F56: Event | G56: 2016-02-06 | H56: 11:00:00 | I56: 4 | J56: 15:00:00
A57: 41 | B57: Тюбинг-рейсинг | C57: Hi-jera_WingFox | D57: Улица | F57: Event | G57: 2016-02-06 | H57: 11:00:00 | I57: 2 | J57: 13:00:00
A58: 44 | B58: Работа Арт-салона | C58: Организаторы | D58: Арт-салон, Главный корпус, 2 этаж | F58: Event | G58: 2016-02-06 | H58: 11:30:00 | I58: 1.5 | J58: 13:00:00
A59: 45 | B59: Фурсьютостроение | C59: Nubi | D59: Комната для мероприятий. Главный корпус, 4 этаж | F59: Event | G59: 2016-02-06 | H59: 12:00:00 | I59: 1.5 | J59: 13:30:00
A60: 46 | B60: Ставки сделаны! | C60: Организаторы | D60: Арт-салон, Главный корпус, 2 этаж | F60: Event | G60: 2016-02-06 | H60: 13:00:00 | I60: 0.5 | J60: 13:30:00
B61: Обед | D61: Ресторан | F61: Еда | G61: 2016-02-06 | H61: 13:00:00 | I61: 2.5 | J61: 15:30:00
A62: 47 | B62: Групповое фото фурсьютеров | C62: Организаторы | D62: Улица | F62: Event | G62: 2016-02-06 | H62: 15:00:00 | I62: 1 | J62: 16:00:00
A63: 48 | B63: Плюшевые прогулки | C63: Организаторы | D63: Улица | F63: Event | G63: 2016-02-06 | H63: 15:30:00 | I63: 1.5 | J63: 17:00:00
A64: 49 | B64: Аукцион | C64: Организаторы | D64: Главный зал. Главный корпус, 1 этаж | F64: Event | G64: 2016-02-06 | H64: 17:00:00 | I64: 2 | J64: 19:00:00
B65: Ужин | D65: Ресторан | F65: Еда | G65: 2016-02-06 | H65: 19:00:00 | I65: 3 | J65: 22:00:00
A66: 50 | B66: FURDANCE competition 2016 | C66: Gabriel | D66: Главный зал. Главный корпус, 1 этаж | F66: Event | G66: 2016-02-06 | H66: 20:00:00 | I66: 2 | J66: =H66+TIME(FLOOR(I66,1),(I66-FLOOR(I66,1))*60,0) -> 22:00:00
A67: 51 | B67: Групповое фото | C67: Организаторы | D67: Главный зал. Главный корпус, 1 этаж | F67: Event | G67: 2016-02-06 | H67: 22:00:00 | I67: 1 | J67: 23:00:00
A68: 52 | B68: Закрытие | C68: Организаторы | D68: Главный зал. Главный корпус, 1 этаж | F68: Event | G68: 2016-02-06 | H68: 22:30:00 | I68: 2 | J68: 1.020833333
A69: 53 | B69: Подведение итогов за день (коорд. штаб) | C69: Организаторы | D69: КонОпс. Главный корпус | F69: Org | G69: 2016-02-06 | H69: 23:00:00 | J69: 23:00:00
A70: 54 | B70: Дискотека | C70: Организаторы | D70: Главный зал. Главный корпус, 1 этаж | F70: Event | G70: 2016-02-06 | H70: 23:30:00 | I70: 3 | J70: 1.104166667
A71: 55 | B71: Летучка в воскресенье | C71: Main orgs team | D71: КонОпс. Главный корпус | F71: Org | G71: 2016-02-07 | H71: 09:00:00 | I71: 1 | J71: 10:00:00
B72: Завтрак | D72: Ресторан | F72: Еда | G72: 2016-02-07 | H72: 09:00:00 | I72: 2 | J72: 11:00:00
A73: 56 | B73: Internal feedback session | C73: Main orgs team | D73: Бар, Главный корпус, 1 этаж | F73: Org | G73: 2016-02-07 | H73: 10:30:00 | I73: 1 | J73: 11:30:00
A74: 57 | B74: Feedback | C74: Организаторы | D74: Бар, Главный корпус, 1 этаж | F74: Event | G74: 2016-02-07 | H74: 11:30:00 | I74: 2 | J74: 13:30:00
B75: Обед | D75: Ресторан | F75: Еда | G75: 2016-02-07 | H75: 13:00:00 | I75: 2.5 | J75: 15:30:00
B76: Ужин | D76: Ресторан | F76: Еда | G76: 2016-02-07 | H76: 19:00:00 | I76: 3 | J76: 22:00:00

Sheet Бланк
B2: День недели | C2: Время | E2: АртШоу | G2: Комната для мероприятий (2 этаж) | I2: Бар | K2: Главный зал | M2: Улица | O2: Ресторан
C4: 42766.66667
B5: =C4 -> 2017-01-31T16:00:00
C6: =C4+0.5/24 -> 42766.6875
C8: 42766.70833
C10: 42766.72917
C12: 42766.75
C14: 42766.77083
C16: 42766.79167
C18: 42766.8125
C20: 42766.83333
C22: 42766.85417
C24: 42766.875
C26: =C24+0.5/24 -> 42766.89583
C28: 42766.91667
C30: 42766.9375
C32: 42766.95833
C34: 42766.97917
C36: 42767
B37: =C36 -> 2017-02-01
C38: 42767.02083
C40: 42767.04167
C42: 42767.0625
C44: 42767.08333
C46: 42767.10417
C48: 42767.125
C50: 42767.14583
C52: 42767.16667
C54: 42767.1875
C56: 42767.20833
C58: 42767.22917
C60: 42767.25
C62: 42767.27083
C64: 42767.29167
C66: 42767.3125
C68: 42767.33333
C70: 42767.35417
C72: 42767.375
C74: 42767.39583
C76: 42767.41667
C78: 42767.4375
C80: 42767.45833
C82: 42767.47917
C84: 42767.5
C86: 42767.52083
C88: 42767.54167
C90: =C88+0.5/24 -> 42767.5625
C92: 42767.58333
C94: 42767.60417
C96: 42767.625
C98: 42767.64583
E99: Фуробус, м. Строгино
C100: 42767.66667
C102: 42767.6875
C104: 42767.70833
C106: 42767.72917
C108: 42767.75
C110: 42767.77083
C112: 42767.79167
C114: 42767.8125
C116: 42767.83333
C118: 42767.85417
C120: 42767.875
C122: 42767.89583
C124: 42767.91667
C126: 42767.9375
C128: 42767.95833
C130: 42767.97917
C132: 42768
B133: =C132 -> 2017-02-02
C134: 42768.02083
C136: 42768.04167
C138: 42768.0625
C140: 42768.08333
C142: 42768.10417
C144: 42768.125
C146: 42768.14583
C148: 42768.16667
C150: 42768.1875
C152: 42768.20833
C154: =C152+0.5/24 -> 42768.22917
C156: 42768.25
C158: 42768.27083
C160: 42768.29167
C162: 42768.3125
C164: 42768.33333
C166: 42768.35417
C168: 42768.375
C170: 42768.39583
C172: 42768.41667
C174: 42768.4375
C176: 42768.45833
C178: 42768.47917
C180: 42768.5
C182: 42768.52083
C184: 42768.54167
C186: 42768.5625
C188: 42768.58333
C190: 42768.60417
C192: 42768.625
C194: 42768.64583
C196: 42768.66667
C198: 42768.6875
C200: 42768.70833
C202: 42768.72917
C204: 42768.75
C206: 42768.77083
C208: 42768.79167
C210: 42768.8125
C212: 42768.83333
C214: 42768.85417
C216: 42768.875
C218: =C216+0.5/24 -> 42768.89583
C220: 42768.91667
C222: 42768.9375
C224: 42768.95833
K225: Дизайн Ambidexter. В расписании возможны изменения.
C226: 42768.97917
C228: 42769
B229: =C228 -> 2017-02-03
C230: 42769.02083
C232: 42769.04167
C234: 42769.0625
C236: 42769.08333
C238: 42769.10417
C240: 42769.125
C242: 42769.14583
C244: 42769.16667
C246: 42769.1875
C248: 42769.20833
C250: 42769.22917
C252: 42769.25
C254: 42769.27083
C256: 42769.29167
C258: 42769.3125
C260: 42769.33333
C262: 42769.35417
C264: 42769.375
C266: 42769.39583
C268: 42769.41667
C270: 42769.4375
C272: 42769.45833
C274: 42769.47917
C276: 42769.5
C278: 42769.52083
C280: 42769.54167
C282: =C280+0.5/24 -> 42769.5625
C284: 42769.58333
C286: 42769.60417
C288: 42769.625
C290: 42769.64583
C292: 42769.66667
C294: 42769.6875
C296: 42769.70833
C298: 42769.72917
C300: 42769.75
C302: 42769.77083
C304: 42769.79167
C306: 42769.8125
C308: 42769.83333
C310: 42769.85417
C312: 42769.875
C314: 42769.89583
C316: 42769.91667
C318: 42769.9375
C320: 42769.95833
C322: 42769.97917
C324: 42770
B325: =C324 -> 2017-02-04
C326: 42770.02083
C328: 42770.04167
C330: 42770.0625
C332: 42770.08333
C334: 42770.10417
C336: 42770.125
C338: 42770.14583
C340: 42770.16667
C342: 42770.1875
C344: 42770.20833
C346: =C344+0.5/24 -> 42770.22917
C348: 42770.25
C350: 42770.27083
C352: 42770.29167
C354: 42770.3125
C356: 42770.33333
C358: 42770.35417
C360: 42770.375
C362: 42770.39583
C364: 42770.41667
C366: 42770.4375
C368: 42770.45833
C370: 42770.47917
C372: 42770.5
C374: 42770.52083
C376: 42770.54167
C378: 42770.5625
C380: 42770.58333
C382: 42770.60417
C384: 42770.625
C386: 42770.64583
... 57 more rows

Sheet RU
B2: День недели | C2: Время | E2: АртШоу | G2: Комната для мероприятий (2 этаж) | I2: Бар | K2: Главный зал | M2: Улица | O2: Ресторан
C4: 42766.66667
B5: =C4 -> 2017-01-31T16:00:00
C6: =C4+0.5/24 -> 42766.6875
C8: 42766.70833
C10: 42766.72917
C12: 42766.75
C14: 42766.77083
C16: 42766.79167
C18: 42766.8125
C20: 42766.83333
C22: 42766.85417
C24: 42766.875
C26: =C24+0.5/24 -> 42766.89583
C28: 42766.91667
C30: 42766.9375
C32: 42766.95833
C34: 42766.97917
C36: 42767
B37: =C36 -> 2017-02-01
C38: 42767.02083
C40: 42767.04167
C42: 42767.0625
C44: 42767.08333
C46: 42767.10417
C48: 42767.125
C50: 42767.14583
C52: 42767.16667
C54: 42767.1875
C56: 42767.20833
C58: 42767.22917
C60: 42767.25
C62: 42767.27083
C64: 42767.29167
C66: 42767.3125
C68: 42767.33333
C70: 42767.35417
C72: 42767.375
C74: 42767.39583
C76: 42767.41667
C78: 42767.4375
C80: 42767.45833
C82: 42767.47917
C84: 42767.5
C86: 42767.52083
C88: 42767.54167
C90: =C88+0.5/24 -> 42767.5625
C92: 42767.58333
C94: 42767.60417
C96: 42767.625
C98: 42767.64583
E99: Фуробус, м. Строгино
C100: 42767.66667
C102: 42767.6875
C104: 42767.70833
C106: 42767.72917
K107: Открытие
C108: 42767.75
C110: 42767.77083
K111: Про благотворительность
C112: 42767.79167
C114: 42767.8125
C116: 42767.83333
C118: 42767.85417
C120: 42767.875
I121: Моя первая фурька | K121: Как уделать Голливуд [Ragnarek]
C122: 42767.89583
C124: 42767.91667
C126: 42767.9375
K127: Hoofstrike Party [Пямч]
C128: 42767.95833
C130: 42767.97917
C132: 42768
B133: =C132 -> 2017-02-02
C134: 42768.02083
C136: 42768.04167
C138: 42768.0625
C140: 42768.08333
C142: 42768.10417
C144: 42768.125
C146: 42768.14583
C148: 42768.16667
C150: 42768.1875
C152: 42768.20833
C154: =C152+0.5/24 -> 42768.22917
C156: 42768.25
C158: 42768.27083
C160: 42768.29167
C162: 42768.3125
C164: 42768.33333
C166: 42768.35417
C168: 42768.375
C170: 42768.39583
C172: 42768.41667
C174: 42768.4375
C176: 42768.45833
G177: Позирование в фурсьюте [Spirit]
C178: 42768.47917
C180: 42768.5
C182: 42768.52083
M183: Снежный фуррь
C184: 42768.54167
C186: 42768.5625
C188: 42768.58333
C190: 42768.60417
G191: Фурсьютостроение [MyaRRiD]
C192: 42768.625
C194: 42768.64583
C196: 42768.66667
K197: QUIZ [MiSt Starshine]
C198: 42768.6875
G199: Furry Games [Dreamer]
C200: 42768.70833
C202: 42768.72917
C204: 42768.75
C206: 42768.77083
K207: Дизайн Ambidexter. В расписании возможны изменения.
C208: 42768.79167
C210: 42768.8125
C212: 42768.83333
C214: 42768.85417
C216: 42768.875
K217: Дефиле. Конкурс костюмов
C218: =C216+0.5/24 -> 42768.89583
C220: 42768.91667
G221: Музыкальный Чарити-квартирник [MiSt Starshine] | K221: Дискотека
C222: 42768.9375
C224: 42768.95833
C226: 42768.97917
C228: 42769
B229: =C228 -> 2017-02-03
C230: 42769.02083
C232: 42769.04167
C234: 42769.0625
C236: 42769.08333
C238: 42769.10417
C240: 42769.125
C242: 42769.14583
C244: 42769.16667
C246: 42769.1875
C248: 42769.20833
C250: 42769.22917
C252: 42769.25
C254: 42769.27083
C256: 42769.29167
C258: 42769.3125
C260: 42769.33333
C262: 42769.35417
C264: 42769.375
C266: 42769.39583
C268: 42769.41667
C270: 42769.4375
C272: 42769.45833
K273: Плюш-игры
C274: 42769.47917
C276: 42769.5
C278: 42769.52083
C280: 42769.54167
C282: =C280+0.5/24 -> 42769.5625
C284: 42769.58333
C286: 42769.60417
C288: 42769.625
G289: Царапаем и трём [Пямч] | K289: Групп.фото фурсьютеров
C290: 42769.64583
M291: Фурсьют-прогулка
C292: 42769.66667
C294: 42769.6875
C296: 42769.70833
G297: Месье, где ваша шляпа? (ч.1)
C298: 42769.72917
C300: 42769.75
C302: 42769.77083
C304: 42769.79167
C306: 42769.8125
C308: 42769.83333
C310: 42769.85417
C312: 42769.875
K313: Побег из Красного Замка
C314: 42769.89583
C316: 42769.91667
C318: 42769.9375
G319: Чаепитие у мышки Сони
C320: 42769.95833
C322: 42769.97917
C324: 42770
B325: =C324 -> 2017-02-04
C326: 42770.02083
C328: 42770.04167
C330: 42770.0625
C332: 42770.08333
C334: 42770.10417
C336: 42770.125
C338: 42770.14583
C340: 42770.16667
C342: 42770.1875
C344: 42770.20833
C346: =C344+0.5/24 -> 42770.22917
C348: 42770.25
C350: 42770.27083
C352: 42770.29167
... 83 more rows

Sheet EN
B2: Weekday | C2: Time | E2: Art Show | G2: Floor 2 | I2: Bar | K2: Main hall | M2: Outdoors | O2: Restaurant
C4: 42766.66667
B5: =C4 -> 2017-01-31T16:00:00
C6: =C4+0.5/24 -> 42766.6875
C8: 42766.70833
C10: 42766.72917
C12: 42766.75
C14: 42766.77083
C16: 42766.79167
C18: 42766.8125
C20: 42766.83333
C22: 42766.85417
C24: 42766.875
C26: =C24+0.5/24 -> 42766.89583
C28: 42766.91667
C30: 42766.9375
C32: 42766.95833
C34: 42766.97917
C36: 42767
B37: =C36 -> 2017-02-01
C38: 42767.02083
C40: 42767.04167
C42: 42767.0625
C44: 42767.08333
C46: 42767.10417
C48: 42767.125
C50: 42767.14583
C52: 42767.16667
C54: 42767.1875
C56: 42767.20833
C58: 42767.22917
C60: 42767.25
C62: 42767.27083
C64: 42767.29167
C66: 42767.3125
C68: 42767.33333
C70: 42767.35417
C72: 42767.375
C74: 42767.39583
C76: 42767.41667
C78: 42767.4375
C80: 42767.45833
C82: 42767.47917
C84: 42767.5
C86: 42767.52083
C88: 42767.54167
C90: =C88+0.5/24 -> 42767.5625
C92: 42767.58333
C94: 42767.60417
C96: 42767.625
C98: 42767.64583
E99: Furbus from Strogino
C100: 42767.66667
C102: 42767.6875
C104: 42767.70833
C106: 42767.72917
K107: Opening
C108: 42767.75
C110: 42767.77083
K111: About Charity
C112: 42767.79167
C114: 42767.8125
C116: 42767.83333
C118: 42767.85417
C120: 42767.875
I121: My First Furence | K121: How to outdo Hollywood [Ragnarek]
C122: 42767.89583
C124: 42767.91667
C126: 42767.9375
K127: Hoofstrike Party [Пямч]
C128: 42767.95833
C130: 42767.97917
C132: 42768
B133: =C132 -> 2017-02-02
C134: 42768.02083
C136: 42768.04167
C138: 42768.0625
C140: 42768.08333
C142: 42768.10417
C144: 42768.125
C146: 42768.14583
C148: 42768.16667
C150: 42768.1875
C152: 42768.20833
C154: =C152+0.5/24 -> 42768.22917
C156: 42768.25
C158: 42768.27083
C160: 42768.29167
C162: 42768.3125
C164: 42768.33333
C166: 42768.35417
C168: 42768.375
C170: 42768.39583
C172: 42768.41667
C174: 42768.4375
C176: 42768.45833
G177: Modeling tips for fursuiters [Spirit]
C178: 42768.47917
C180: 42768.5
C182: 42768.52083
M183: Snow Furs
C184: 42768.54167
C186: 42768.5625
C188: 42768.58333
C190: 42768.60417
G191: Fursuit making [MyaRRiD]
C192: 42768.625
C194: 42768.64583
C196: 42768.66667
K197: QUIZ [MiSt Starshine]
C198: 42768.6875
G199: Furry Board Games [Dreamer]
C200: 42768.70833
C202: 42768.72917
C204: 42768.75
C206: 42768.77083
K207: Designed by Ambidexter. Subject to change.
C208: 42768.79167
C210: 42768.8125
C212: 42768.83333
C214: 42768.85417
C216: 42768.875
K217: Catwalk. Costume contest
C218: =C216+0.5/24 -> 42768.89583
C220: 42768.91667
G221: Charity home concert [MiSt Starshine] | K221: Disco
C222: 42768.9375
C224: 42768.95833
C226: 42768.97917
C228: 42769
B229: =C228 -> 2017-02-03
C230: 42769.02083
C232: 42769.04167
C234: 42769.0625
C236: 42769.08333
C238: 42769.10417
C240: 42769.125
C242: 42769.14583
C244: 42769.16667
C246: 42769.1875
C248: 42769.20833
C250: 42769.22917
C252: 42769.25
C254: 42769.27083
C256: 42769.29167
C258: 42769.3125
C260: 42769.33333
C262: 42769.35417
C264: 42769.375
C266: 42769.39583
C268: 42769.41667
C270: 42769.4375
C272: 42769.45833
K273: Plush Games
C274: 42769.47917
C276: 42769.5
C278: 42769.52083
C280: 42769.54167
C282: =C280+0.5/24 -> 42769.5625
C284: 42769.58333
C286: 42769.60417
C288: 42769.625
G289: Scratching and tearing [Пямч] | K289: Fursuiters’ group photo
C290: 42769.64583
M291: Fursuit walk
C292: 42769.66667
C294: 42769.6875
C296: 42769.70833
G297: Where is your hat, monsieur? (p.1)
C298: 42769.72917
C300: 42769.75
C302: 42769.77083
C304: 42769.79167
C306: 42769.8125
C308: 42769.83333
C310: 42769.85417
C312: 42769.875
K313: Escape from the Red Castle
C314: 42769.89583
C316: 42769.91667
C318: 42769.9375
G319: Dormouse’s tea party
C320: 42769.95833
C322: 42769.97917
C324: 42770
B325: =C324 -> 2017-02-04
C326: 42770.02083
C328: 42770.04167
C330: 42770.0625
C332: 42770.08333
C334: 42770.10417
C336: 42770.125
C338: 42770.14583
C340: 42770.16667
C342: 42770.1875
C344: 42770.20833
C346: =C344+0.5/24 -> 42770.22917
C348: 42770.25
C350: 42770.27083
C352: 42770.29167
... 83 more rows

Sheet RU-2016
B2: День недели | C2: Время | E2: Арт-салон (2 этаж) | G2: 4 этаж | I2: Бар | K2: Главный зал | M2: Улица | O2: Ресторан
C4: 42402.66667
B5: =C4 -> 2016-02-02T16:00:00
C6: =C4+0.5/24 -> 42402.6875
C8: 42402.70833
E9: Приём работ
C10: 42402.72917
C12: 42402.75
C14: 42402.77083
C16: 42402.79167
C18: 42402.8125
C20: 42402.83333
C22: 42402.85417
C24: 42402.875
C26: =C24+0.5/24 -> 42402.89583
C28: 42402.91667
C30: 42402.9375
C32: 42402.95833
C34: 42402.97917
C36: 42403
B37: =C36 -> 2016-02-03
C38: 42403.02083
C40: 42403.04167
C42: 42403.0625
C44: 42403.08333
C46: 42403.10417
C48: 42403.125
C50: 42403.14583
C52: 42403.16667
C54: 42403.1875
C56: 42403.20833
C58: 42403.22917
C60: 42403.25
C62: 42403.27083
C64: 42403.29167
C66: 42403.3125
C68: 42403.33333
C70: 42403.35417
C72: 42403.375
C74: 42403.39583
C76: 42403.41667
C78: 42403.4375
C80: 42403.45833
C82: 42403.47917
E83: Приём работ
C84: 42403.5
C86: 42403.52083
C88: 42403.54167
C90: =C88+0.5/24 -> 42403.5625
C92: 42403.58333
C94: 42403.60417
C96: 42403.625
C98: 42403.64583
G99: Фуробус, м. Строгино
C100: 42403.66667
C102: 42403.6875
C104: 42403.70833
C106: 42403.72917
C108: 42403.75
C110: 42403.77083
C112: 42403.79167
C114: 42403.8125
C116: 42403.83333
C118: 42403.85417
C120: 42403.875
K121: Открытие
C122: 42403.89583
C124: 42403.91667
C126: 42403.9375
C128: 42403.95833
K129: Моя первая фурька
C130: 42403.97917
C132: 42404
B133: =C132 -> 2016-02-04
C134: 42404.02083
C136: 42404.04167
C138: 42404.0625
C140: 42404.08333
C142: 42404.10417
C144: 42404.125
C146: 42404.14583
C148: 42404.16667
C150: 42404.1875
C152: 42404.20833
C154: =C152+0.5/24 -> 42404.22917
C156: 42404.25
C158: 42404.27083
C160: 42404.29167
C162: 42404.3125
C164: 42404.33333
C166: 42404.35417
C168: 42404.375
C170: 42404.39583
C172: 42404.41667
C174: 42404.4375
C176: 42404.45833
C178: 42404.47917
E179: Работа Арт-салона | G179: Введение в китайский [Aspeel]
C180: 42404.5
C182: 42404.52083
C184: 42404.54167
C186: 42404.5625
C188: 42404.58333
C190: 42404.60417
C192: 42404.625
C194: 42404.64583
G195: Рассказ о Животных Силы [Hi_Jera]
C196: 42404.66667
C198: 42404.6875
C200: 42404.70833
C202: 42404.72917
C204: 42404.75
C206: 42404.77083 | K206: Дизайн Ambidexter. В расписании возможны изменения.
C208: 42404.79167
C210: 42404.8125
C212: 42404.83333
C214: 42404.85417
C216: 42404.875
G217: Рисунок акварелью и маркером [ShinigamiGirl]
C218: =C216+0.5/24 -> 42404.89583
C220: 42404.91667
G221: FurryVape [Mister_X]
C222: 42404.9375
K223: Дискотека
C224: 42404.95833
C226: 42404.97917
C228: 42405
B229: =C228 -> 2016-02-05
C230: 42405.02083
C232: 42405.04167
C234: 42405.0625
C236: 42405.08333
C238: 42405.10417
C240: 42405.125
C242: 42405.14583
C244: 42405.16667
C246: 42405.1875
C248: 42405.20833
C250: 42405.22917
C252: 42405.25
C254: 42405.27083
C256: 42405.29167
C258: 42405.3125
C260: 42405.33333
C262: 42405.35417
C264: 42405.375
C266: 42405.39583
C268: 42405.41667
C270: 42405.4375
C272: 42405.45833
C274: 42405.47917
E275: Работа Арт-салона | G275: Кружок миниатюристов: берестяные узоры [Саурон] | M275: Плюшевые игры [Gabriel]
C276: 42405.5
C278: 42405.52083
C280: 42405.54167
C282: =C280+0.5/24 -> 42405.5625
C284: 42405.58333
C286: 42405.60417
C288: 42405.625
G289: Художник-головорез [ShinigamiGirl]
C290: 42405.64583
C292: 42405.66667
C294: 42405.6875
G295: Мурсьютостроение [Nubi]
C296: 42405.70833
C298: 42405.72917
K299: Городские легенды
C300: 42405.75
C302: 42405.77083
C304: 42405.79167
C306: 42405.8125
C308: 42405.83333
C310: 42405.85417
C312: 42405.875
G313: Мастер-класс по лепке из полимерной глины [Angel_Tigress]
C314: 42405.89583
I315: Интеллектуальная игра QUIZ
C316: 42405.91667
K317: Конкурс немого кино
C318: 42405.9375
C320: 42405.95833
M321: Салют
C322: 42405.97917
G323: АРФИ, FurryStuff, поэтический вечер [StormWind] | M323: Шашлыки в −30 [Tigrenok]
C324: 42406
B325: =C324 -> 2016-02-06
C326: 42406.02083
C328: 42406.04167
C330: 42406.0625
C332: 42406.08333
C334: 42406.10417
C336: 42406.125
C338: 42406.14583
C340: 42406.16667
C342: 42406.1875
C344: 42406.20833
C346: =C344+0.5/24 -> 42406.22917
C348: 42406.25
C350: 42406.27083
C352: 42406.29167
... 86 more rows

Sheet EN-2016
B2: Weekday | C2: Time | E2: Art salon (floor 2) | G2: Floor 4 | I2: Bar | K2: Main hall | M2: Outdoors | O2: Restaurant
C4: 42402.66667
B5: =C4 -> 2016-02-02T16:00:00
C6: =C4+0.5/24 -> 42402.6875
C8: 42402.70833
E9: Reception of artwork
C10: 42402.72917
C12: 42402.75
C14: 42402.77083
C16: 42402.79167
C18: 42402.8125
C20: 42402.83333
C22: 42402.85417
C24: 42402.875
C26: =C24+0.5/24 -> 42402.89583
C28: 42402.91667
C30: 42402.9375
C32: 42402.95833
C34: 42402.97917
C36: 42403
B37: =C36 -> 2016-02-03
C38: 42403.02083
C40: 42403.04167
C42: 42403.0625
C44: 42403.08333
C46: 42403.10417
C48: 42403.125
C50: 42403.14583
C52: 42403.16667
C54: 42403.1875
C56: 42403.20833
C58: 42403.22917
C60: 42403.25
C62: 42403.27083
C64: 42403.29167
C66: 42403.3125
C68: 42403.33333
C70: 42403.35417
C72: 42403.375
C74: 42403.39583
C76: 42403.41667
C78: 42403.4375
C80: 42403.45833
C82: 42403.47917
E83: Reception of artwork
C84: 42403.5
C86: 42403.52083
C88: 42403.54167
C90: =C88+0.5/24 -> 42403.5625
C92: 42403.58333
C94: 42403.60417
C96: 42403.625
C98: 42403.64583
G99: Furbus from Strogino
C100: 42403.66667
C102: 42403.6875
C104: 42403.70833
C106: 42403.72917
C108: 42403.75
C110: 42403.77083
C112: 42403.79167
C114: 42403.8125
C116: 42403.83333
C118: 42403.85417
C120: 42403.875
K121: Opening
C122: 42403.89583
C124: 42403.91667
C126: 42403.9375
C128: 42403.95833
K129: My first furence
C130: 42403.97917
C132: 42404
B133: =C132 -> 2016-02-04
C134: 42404.02083
C136: 42404.04167
C138: 42404.0625
C140: 42404.08333
C142: 42404.10417
C144: 42404.125
C146: 42404.14583
C148: 42404.16667
C150: 42404.1875
C152: 42404.20833
C154: =C152+0.5/24 -> 42404.22917
C156: 42404.25
C158: 42404.27083
C160: 42404.29167
C162: 42404.3125
C164: 42404.33333
C166: 42404.35417
C168: 42404.375
C170: 42404.39583
C172: 42404.41667
C174: 42404.4375
C176: 42404.45833
C178: 42404.47917
E179: Exhibition | G179: Introduction to the Chinese [Aspeel]
C180: 42404.5
C182: 42404.52083
C184: 42404.54167
C186: 42404.5625
C188: 42404.58333
C190: 42404.60417
C192: 42404.625
C194: 42404.64583
G195: Stories about Beasts of Power [Hi_Jera]
C196: 42404.66667
C198: 42404.6875
C200: 42404.70833
C202: 42404.72917
C204: 42404.75
C206: 42404.77083 | K206: Designed by Ambidexter. Subject to change.
C208: 42404.79167
C210: 42404.8125
C212: 42404.83333
C214: 42404.85417
C216: 42404.875
G217: Watercolor and marker drawing [ShinigamiGirl]
C218: =C216+0.5/24 -> 42404.89583
C220: 42404.91667
G221: FurryVape [Mister_X]
C222: 42404.9375
K223: Disco
C224: 42404.95833
C226: 42404.97917
C228: 42405
B229: =C228 -> 2016-02-05
C230: 42405.02083
C232: 42405.04167
C234: 42405.0625
C236: 42405.08333
C238: 42405.10417
C240: 42405.125
C242: 42405.14583
C244: 42405.16667
C246: 42405.1875
C248: 42405.20833
C250: 42405.22917
C252: 42405.25
C254: 42405.27083
C256: 42405.29167
C258: 42405.3125
C260: 42405.33333
C262: 42405.35417
C264: 42405.375
C266: 42405.39583
C268: 42405.41667
C270: 42405.4375
C272: 42405.45833
C274: 42405.47917
E275: Exhibition | G275: Miniature painting: birch bark patterns [Саурон] | M275: Plush Games [Gabriel]
C276: 42405.5
C278: 42405.52083
C280: 42405.54167
C282: =C280+0.5/24 -> 42405.5625
C284: 42405.58333
C286: 42405.60417
C288: 42405.625
G289: Cutthroat Artist [ShinigamiGirl]
C290: 42405.64583
C292: 42405.66667
C294: 42405.6875
G295: Murrsuit making [Nubi]
C296: 42405.70833
C298: 42405.72917
K299: City Legends
C300: 42405.75
C302: 42405.77083
C304: 42405.79167
C306: 42405.8125
C308: 42405.83333
C310: 42405.85417
C312: 42405.875
G313: Polymer clay modeling [Angel_Tigress]
C314: 42405.89583
I315: QUIZ (Intellectual game)
C316: 42405.91667
K317: Silent movies contest
C318: 42405.9375
C320: 42405.95833
M321: Fireworks
C322: 42405.97917
G323: ARFI, FurryStuff, poetry reading [StormWind] | M323: BBQ at −30 [Tigrenok]
C324: 42406
B325: =C324 -> 2016-02-06
C326: 42406.02083
C328: 42406.04167
C330: 42406.0625
C332: 42406.08333
C334: 42406.10417
C336: 42406.125
C338: 42406.14583
C340: 42406.16667
C342: 42406.1875
C344: 42406.20833
C346: =C344+0.5/24 -> 42406.22917
C348: 42406.25
C350: 42406.27083
C352: 42406.29167
... 86 more rows
